Cogmind - Beta 10.1 @@@ ROGUE MODE // 2020.09.23 @ 20:28:06 Player: Omewes Result: Core destroyed Performance ------------- Evolutions (5) 2500 Regions Visited (18) 3600 Robots Destroyed (183) 915 Value Destroyed (6749) 6749 Prototype IDs (11) 220 Alien Tech Used (0) 0 Bonus (2652) 2652 TOTAL SCORE: 16636 Bonus ------- High Alert Combat Kills 560 Follower Combat Kills 1785 Network Hubs Disabled 800 Met Imprinter 300 Met Zhirov 300 Met R17 at Cetus 500 Read Decrypted Archives 300 Friendly Fire -1893 Cogmind --------- Core Integrity 0/1000 Matter 245/300 Energy 85/100 System Corruption 20% Temperature Cool (0) Movement Core (50) Location -5/Hub_04(d) Parts ------- > --- POWER (1) -------- (None) > --- PROPULSION (3) --- (None) > --- UTILITY (8) ------ Advanced Melee Analysis Suite > --- WEAPON (5) ------- (None) > --- INVENTORY (4) ---- Centrium Heavy Treads Peak State ------------ > --- POWER ------------ Quantum Reactor > --- PROPULSION ------- Improved Medium Treads Centrium Heavy Treads > --- UTILITY ---------- Large Storage Unit Large Storage Unit Long-range Sensor Array Advanced Signal Interpreter Advanced Terrain Scan Processor Advanced Targeting Computer Improved Armor Integrity Analyzer Centrium Medium Armor Plating > --- WEAPON ----------- Improved KE Penetrator Improved KE Penetrator Improved KE Penetrator Improved KE Penetrator Improved KE Penetrator > --- INVENTORY -------- Quantum Reactor Quantum Reactor Centrium Heavy Treads Improved Cooling System Matter Compressor Long-range Terrain Scanner Improved Transmission Jammer Damper Plating KE Penetrator KE Penetrator KE Penetrator Improved Proton Missile Launcher Phasing Sabre [Rating: 112] Favorites ----------- Power Improved Deuterium Engine Engine Improved Deuterium Engine Power Core Micro Fission Core Reactor Quantum Reactor Propulsion Medium Treads Treads Medium Treads Flight Unit Field Propulsion Drive Utility Large Storage Unit Device Long-range Sensor Array Storage Large Storage Unit Processor Advanced Terrain Scan Processor Hackware Advanced System Shield Protection Improved Medium Armor Plating Weapon Flak Gun Energy Gun Heavy EM Pulse Gun Energy Cannon Proton Cannon Ballistic Gun Flak Gun Ballistic Cannon Hypervelocity Mass Driver Launcher Heavy Missile Launcher Impact Weapon Powered Hammer Slashing Weapon Power Sword Build | -11 -10 -10 -10 -9 -8 -7 -7 -7 -6 -6 -6 -6 -5 -5 -5 -5 -5 -5 ------- Run | Scr Mat Min Exi Min Mat Fac Was Fac Fac Low Low Zio Pro Fac Ext Cet Arc Hub Slots Evolved 10 | . . . . . 4 2 . . 2 . . . . 2 . . . . Power . | . . . . . . . . . . . . . . . . . . . Propulsion 1 | . . . . . . . . . 1 . . . . . . . . . Utility 6 | . . . . . 2 1 . . 1 . . . . 2 . . . . Weapon 3 | . . . . . 2 1 . . . . . . . . . . . . Parts Attached 229 | 6 13 2 1 1 12 21 10 11 15 8 9 6 6 21 37 21 2 27 Power 11 | 1 . . . . 1 1 . 1 . . . . . 1 2 2 1 1 Engine 5 | 1 . . . . 1 1 . 1 . . . . . . . . . 1 Core 3 | . . . . . . . . . . . . . . 1 2 . . . Reactor 3 | . . . . . . . . . . . . . . . . 2 1 . Propulsion 24 | 2 . . . . 4 2 1 . 1 . . . . 2 6 3 . 3 Treads 23 | 2 . . . . 4 2 1 . 1 . . . . 2 6 3 . 2 Leg . | . . . . . . . . . . . . . . . . . . . Wheel . | . . . . . . . . . . . . . . . . . . . Hover . | . . . . . . . . . . . . . . . . . . . Flight 1 | . . . . . . . . . . . . . . . . . . 1 Utility 96 | 1 5 . 1 1 2 10 4 8 7 5 6 6 1 10 12 9 . 8 Device 40 | . 2 . . 1 . 5 2 4 3 3 3 5 . 1 5 3 . 3 Storage 10 | 1 1 . 1 . 1 . . 1 1 1 1 . . 1 1 . . . Processor 12 | . . . . . . 2 2 . 1 1 . . . 2 1 1 . 2 Hackware 4 | . . . . . . . . 1 1 . . . . 2 . . . . Protection 30 | . 2 . . . 1 3 . 2 1 . 2 1 1 4 5 5 . 3 Artifact . | . . . . . . . . . . . . . . . . . . . Weapon 98 | 2 8 2 . . 5 8 5 2 7 3 3 . 5 8 17 7 1 15 Energy Gun 14 | 1 7 1 . . 3 1 . 1 . . . . . . . . . . Energy Cannon 1 | . . . . . . . . . . . . . . . 1 . . . Ballistic Gun 60 | 1 . . . . 2 6 3 . 3 2 2 . 4 6 12 7 . 12 Ballistic Cannon 1 | . . . . . . . 1 . . . . . . . . . . . Launcher 10 | . 1 1 . . . . 1 . . . 1 . 1 1 2 . 1 1 Special Weapon . | . . . . . . . . . . . . . . . . . . . Impact Weapon 3 | . . . . . . 1 . 1 1 . . . . . . . . . Slashing Weapon 9 | . . . . . . . . . 3 1 . . . 1 2 . . 2 Piercing Weapon . | . . . . . . . . . . . . . . . . . . . Special Melee Weapon . | . . . . . . . . . . . . . . . . . . . Unidentified Prototypes 5 | . . . . . . . . . . . . 1 . . . 4 . . Parts Lost 31 | . . . . 1 3 1 2 . . . . . 1 2 3 . 2 16 Power 3 | . . . . . . . . . . . . . . . . . 1 2 Propulsion 5 | . . . . . 1 . . . . . . . . . 1 . 1 2 Utility 8 | . . . . 1 . 1 . . . . . . . 1 1 . . 4 Weapon 15 | . . . . . 2 . 2 . . . . . 1 1 1 . . 8 Highest Loss Streak 12 | . . . . 1 3 1 2 . . . . . 1 1 2 . 2 12 Average Slot Usage (%) 94 | . 99 100 100 99 99 100 94 91 92 92 93 93 92 91 99 94 92 75 Engine 5 | . 14 14 14 14 9 7 7 7 6 6 6 6 6 2 . . . . Treads 15 | . 28 28 28 28 17 15 11 7 13 13 13 13 13 11 16 11 10 6 Device 7 | . 6 . . 10 9 9 5 6 12 12 11 12 12 7 2 4 5 6 Storage 13 | . 14 14 14 14 17 15 15 15 13 13 13 13 13 11 14 11 11 9 Processor 12 | . . . . . . 6 16 15 13 13 13 13 13 15 22 23 23 19 Protection 3 | . 6 14 14 2 8 4 . . . . 1 . . 4 5 5 5 1 Energy Gun 5 | . 26 28 28 28 31 2 . 3 1 . . . . . . . . . Ballistic Gun 24 | . . . . . 4 34 28 30 28 26 26 33 31 27 27 29 25 21 Naked Turns 65 | . . . . . . . . . . . . . . . . . . 65 Heaviest Build 127 | 12 35 34 34 34 59 72 78 69 66 65 67 71 69 78 77 91 93 127 Greatest Support 110 | 40 40 40 40 40 40 56 70 70 98 98 98 98 98 98 83 110 110 103 Greatest Overweight (x) 2 | . . . . . 2 1 1 . . . . . . 2 1 . 1 1 Average Overweight (x) . | . . . . . . 1 . . . . . . . . . . . . Largest Inventory Capacity 18 | 6 10 10 10 10 16 16 16 16 16 18 16 16 16 16 16 16 16 16 Average Capacity 14 | 5 7 10 10 10 15 16 16 16 16 16 16 16 16 16 16 16 16 13 Most Carried 16 | 2 8 10 10 10 16 16 16 16 16 16 16 16 16 16 16 16 16 16 Average Carried 14 | 1 6 9 10 9 13 15 15 15 15 15 15 16 15 15 15 15 15 13 Final Capacity 16 | 6 10 10 10 10 16 16 16 16 16 16 16 16 16 16 16 16 16 4 Final Carried 16 | 2 8 10 10 10 16 16 16 15 16 16 16 16 16 16 16 16 15 2 Class Distribution -------------------- 32% | Skirmisher 19% | Scavenger-Gunner 18% | Mutant 11% | Assassin 5% | Tank 4% | Scavenger-Skirmisher Dominant Class ---------------- Mutant | -10/Materials Mutant | -10/Mines Mutant | -10/Exiles Mutant | -9/Mines Tank | -8/Materials Skirmisher | -7/Factory Gunner | -7/Waste Skirmisher | -7/Factory Skirmisher | -6/Factory Assassin | -6/Lower Caves Assassin | -6/Lower Caves Skirmisher | -6/Zion Skirmisher | -5/Proximity Caves Skirmisher | -5/Factory Scavenger-Gunner | -5/Extension Scavenger-Gunner | -5/Cetus Scavenger-Gunner | -5/Archives Scavenger-Assassin | -5/Hub_04(d) Resources | -11 -10 -10 -10 -9 -8 -7 -7 -7 -6 -6 -6 -6 -5 -5 -5 -5 -5 -5 ----------- Run | Scr Mat Min Exi Min Mat Fac Was Fac Fac Low Low Zio Pro Fac Ext Cet Arc Hub Matter Collected 6684 | 252 157 16 . 46 112 871 714 55 251 184 300 82 261 888 1368 500 . 627 Remotely . | . . . . . . . . . . . . . . . . . . . Salvage Created 10270 | 85 406 275 . 368 523 920 1582 101 278 50 157 . 178 1003 1655 347 401 1941 Parts 438 | 2 28 18 . 12 39 51 15 7 11 3 10 . 16 53 66 26 10 71 Haulers Intercepted 9 | . 2 . . . 3 2 . . . . . . . . . . . 2 Recyclers Shooed 3 | . 1 . . . . . . . 1 . . . . . 1 . . . Parts Field Recycled . | . . . . . . . . . . . . . . . . . . . Retrieved Matter . | . . . . . . . . . . . . . . . . . . . Parts Self-Destructed 22 | . . . . . . . . . . . 10 . 12 . . . . . Prevented . | . . . . . . . . . . . . . . . . . . . Kills | -11 -10 -10 -10 -9 -8 -7 -7 -7 -6 -6 -6 -6 -5 -5 -5 -5 -5 -5 ------- Run | Scr Mat Min Exi Min Mat Fac Was Fac Fac Low Low Zio Pro Fac Ext Cet Arc Hub Combat Hostiles Destroyed 122 | . 11 7 . 6 9 12 6 1 1 . 4 . 7 16 18 4 6 14 Guns 89 | . 8 4 . 4 7 12 5 1 1 . 3 . 3 11 18 4 1 7 Cannons 1 | . . . . . . . 1 . . . . . . . . . . . AOE 30 | . 3 3 . 2 2 . . . . . 1 . 4 5 . . 4 6 Classes Destroyed 18 | 1 4 1 . 1 2 5 1 . . . . . . . 2 . . 1 Worker 14 | . . . . . . 1 . . 2 . . . . 3 1 . . 7 Builder 7 | . . . . 1 1 . . . 1 . . . . . 1 . . 3 Tunneler 3 | . . . . . . 1 . . . . . . . . . . . 2 Hauler 9 | . 2 . . . 3 2 . . . . . . . . . . . 2 Recycler 16 | 1 . . . 1 . 3 . 1 1 . . . . 1 2 . . 6 Carrier 1 | . . . . . . . . . . . . . . . 1 . . . Operator 3 | . . . . . 1 . . . . . . . . . 2 . . . Watcher 3 | . 1 . . . . . . . 1 . . . . . . 1 . . Swarmer 31 | . 6 3 . . 4 . . . . . . . 5 4 2 . . 7 Grunt 41 | . 5 2 . 6 2 6 . . . . 2 . . 5 5 . 6 2 Brawler 2 | . . . . . . 1 . . . . 1 . . . . . . . Protector 1 | . . . . . . . . . . . . . . . . . . 1 Sentry 15 | . . . . . 3 . . . . . . . . 4 6 . . 2 Demolisher 2 | . . 2 . . . . . . . . . . . . . . . . Hunter 11 | . . . . . . 2 . . . . . . 2 3 4 . . . Programmer 8 | . . . . . . 3 . 1 1 . 1 . . . . . . 2 Behemoth 1 | . . . . . . . . . . . . . . . 1 . . . Compactor 6 | . . . . . . . 6 . . . . . . . . . . . Cetus Guard 4 | . . . . . . . . . . . . . . . . 4 . . Decomposer 3 | . . . . . . . . . . 3 . . . . . . . . Best Kill Streak 20 | 1 3 3 . 5 4 4 3 1 1 . 3 . 5 6 4 3 6 20 Combat Bots Only 8 | . 3 3 . 3 4 4 3 1 1 . 3 . 5 4 3 3 6 8 Max Kills in Single Turn 10 | 1 3 3 . 3 3 2 1 1 1 1 1 . 4 3 2 1 2 10 Gunslinging 2 | . . . . . 2 1 . . . . . . . 1 . . . . Exploded 4 | . 3 3 . 2 1 . . . . . 1 . 4 3 . . 2 2 Melee . | . . . . . . . . . . . . . . . . . . . Uniques/NPCs Destroyed 2 | . . 1 . . . . . . . . . . . . . 1 . . YI-UF0 (-10/Mines) Revision 17 (-5/Cetus) Combat | -11 -10 -10 -10 -9 -8 -7 -7 -7 -6 -6 -6 -6 -5 -5 -5 -5 -5 -5 -------- Run | Scr Mat Min Exi Min Mat Fac Was Fac Fac Low Low Zio Pro Fac Ext Cet Arc Hub Damage Taken 9491 | . 274 122 . 147 298 464 48 512 69 . 52 . 465 627 1261 383 1032 3737 Core 1240 | . 24 8 . 30 9 23 . 111 . . . . 34 18 95 . . 888 Absorbed by Shields 182 | . . . . . . . . . . . . . . . . 182 . . Core Remaining (%) 89 | 100 . . . 75 98 . . 80 . . . . 96 . . . . . Volleys Fired 287 | 1 27 12 . 14 15 26 22 4 7 . 6 . 9 23 75 14 8 24 Largest 5 | 2 2 2 . 2 4 5 5 5 5 . 4 . 5 5 5 5 5 5 Hottest 180 | 60 105 90 . 90 180 140 178 167 140 . 108 . 141 157 165 175 175 175 Shots Fired 1008 | 2 46 23 . 28 60 130 92 21 32 . 18 . 35 97 249 70 15 90 Gun 953 | 2 45 22 . 28 60 130 81 21 32 . 16 . 33 95 223 70 9 86 Cannon 18 | . . . . . . . 7 . . . . . . . 11 . . . Launcher 37 | . 1 1 . . . . 4 . . . 2 . 2 2 15 . 6 4 Special . | . . . . . . . . . . . . . . . . . . . Kinetic 811 | 1 7 . . . 4 130 88 17 32 . 16 . 33 95 223 70 9 86 Thermal 29 | 1 28 . . . . . . . . . . . . . . . . . Explosive 20 | . 1 1 . . . . 4 . . . 2 . 2 2 8 . . . Electromagnetic 148 | . 10 22 . 28 56 . . 4 . . . . . . 18 . 6 4 Robot Hit Streak 35 | 1 11 5 . 7 9 12 23 11 6 . 9 . 9 32 35 9 4 12 Robot Miss Streak 10 | . 3 1 . 3 3 10 5 3 7 . 5 . 6 3 2 3 2 3 Penetration Max 2 | . . . . . . . . . . . . . . 2 1 1 1 1 Secondary Targets 17 | . 1 . . 1 5 1 1 . . . 1 . . 2 4 1 . . Max Gunslinging Chain 2 | . 1 . . 1 2 1 1 . . . 1 . . 1 1 1 . . Shots Hit Robots 704 | 1 30 18 . 19 33 111 89 11 27 4 14 . 26 68 144 42 5 62 Core Hits 489 | 1 18 13 . 10 21 86 68 7 22 2 15 . 24 49 64 17 13 59 Critical Hits 40 | . . . . . . . 2 . . 1 . . . 8 14 5 . 10 Critical Kills 18 | . . . . . . . 1 . . . . . . 5 8 2 . 2 Critical Parts Destroyed 19 | . . . . . . . . . . 1 . . . 3 6 2 . 7 Melee Attacks 30 | . . . . . . 1 . 1 12 7 . . . 1 2 . . 6 Impact 5 | . . . . . . 1 . 1 3 . . . . . . . . . Slashing 25 | . . . . . . . . . 9 7 . . . 1 2 . . 6 Piercing . | . . . . . . . . . . . . . . . . . . . Sneak Attacks 10 | . . . . . . . . . 5 4 . . . . . . . 1 Combat Hostiles . | . . . . . . . . . . . . . . . . . . . Follow-up Attacks . | . . . . . . . . . . . . . . . . . . . Damage Inflicted 21360 | 15 649 423 . 393 642 1675 3461 103 923 475 611 . 635 1893 3441 1133 1093 3795 Guns 14491 | 15 461 223 . 306 465 1657 2593 103 315 . 225 . 286 1303 3414 1133 96 1896 Cannons 118 | . . . . . . . 118 . . . . . . . . . . . Explosions 5530 | . 182 200 . 87 177 18 750 . . . 386 . 349 590 18 . 997 1776 Melee 1189 | . . . . . . . . . 608 475 . . . . . . . 106 Ramming 32 | . 6 . . . . . . . . . . . . . 9 . . 17 Kinetic 13245 | 15 97 . . . 16 1657 2711 81 315 . 225 . 286 1303 3414 1133 96 1896 Thermal 652 | . 231 51 . 87 177 13 . . . . . . . . . . 93 . Explosive 2406 | . 182 149 . . . . 750 . . . 386 . 349 590 . . . . Electromagnetic 3836 | . 133 223 . 306 449 5 . 22 . . . . . . 18 . 904 1776 Impact . | . . . . . . . . . . . . . . . . . . . Slashing 1189 | . . . . . . . . . 608 475 . . . . . . . 106 Piercing . | . . . . . . . . . . . . . . . . . . . Highest Corruption 22 | . . . . . . 1 21 22 1 1 1 1 . . . . . 20 Average Corruption 5 | . . . . . . 1 14 21 1 1 1 1 . . . . . 8 Corruption Purged . | . . . . . . . . . . . . . . . . . . . Effects 86 | . . . . . . 2 30 37 1 1 2 . . . . . . 13 Message Errors 12 | . . . . . . . 2 4 . . 2 . . . . . . 4 Matter Fused 10 | . . . . . . . 2 7 . . . . . . . . . 1 Heat Flow Errors 8 | . . . . . . . 3 4 . . . . . . . . . 1 Energy Discharges 6 | . . . . . . 2 1 2 . . . . . . . . . 1 Data Loss (minor) 6 | . . . . . . . 1 2 1 1 . . . . . . . 1 Data Loss (major) 3 | . . . . . . . . 3 . . . . . . . . . . Misfires 3 | . . . . . . . . 3 . . . . . . . . . . Misdirections 12 | . . . . . . . 2 5 . . . . . . . . . 5 Targeting Errors 21 | . . . . . . . 16 5 . . . . . . . . . . Weapon Failures 5 | . . . . . . . 3 2 . . . . . . . . . . Overload Shots . | . . . . . . . . . . . . . . . . . . . Overflow Damage 491 | . . . . . 4 43 . . 209 96 1 . . 1 . . 17 120 Projectiles . | . . . . . . . . . . . . . . . . . . . Explosions 186 | . . . . . 4 43 . . . . 1 . . 1 . . 17 120 Melee 305 | . . . . . . . . . 209 96 . . . . . . . . Knockbacks . | . . . . . . . . . . . . . . . . . . . Impact . | . . . . . . . . . . . . . . . . . . . Kinetic . | . . . . . . . . . . . . . . . . . . . Secondary . | . . . . . . . . . . . . . . . . . . . Self-Inflicted Damage 755 | . . 25 . . 71 83 . 464 . . . . . . . . . 112 Shots 11 | . . 1 . . 2 1 . 5 . . . . . . . . . 2 Rammed 5 | . 1 . . . . . . . . . . . . . 1 . . 3 Targets Rammed 5 | . 1 . . . . . . . . . . . . . 1 . . 3 Kicked . | . . . . . . . . . . . . . . . . . . . Crushed . | . . . . . . . . . . . . . . . . . . . Highest Temperature 354 | . 168 192 . 249 259 336 334 247 96 . 54 . 72 148 302 329 90 354 Average Temperature 90 | . 51 82 . 101 89 78 145 93 32 . 25 . 31 49 85 130 35 139 Received Heat Transfer 999 | . 102 36 . 84 81 99 . . 12 . 18 . . 117 171 . 9 270 Effects 9 | . . . . . . 2 3 . . . . . . . . 2 . 2 Shutdowns 2 | . . . . . . 1 1 . . . . . . . . . . . Energy Bleed 5 | . . . . . . 1 . . . . . . . . . 2 . 2 Interference 2 | . . . . . . . 2 . . . . . . . . . . . Siege Activations . | . . . . . . . . . . . . . . . . . . . Robots Corrupted 4 | . . . . . . . . . . . . . . . . . 1 3 Combat Hostiles 2 | . . . . . . . . . . . . . . . . . 1 1 Parts Fried 26 | . . 1 . 3 5 . . . . . . . . . 2 . 2 13 Impact Corruptions . | . . . . . . . . . . . . . . . . . . . Robots Melted . | . . . . . . . . . . . . . . . . . . . Combat Hostiles . | . . . . . . . . . . . . . . . . . . . Parts Melted 2 | . 1 . . . . . . . . . . . . . 1 . . . Heat Transferred 933 | . 533 50 . 50 200 50 . . . . . . . . . . 50 . Parts Sabotaged 1 | . . . . . . . . . . . . . . . . . . 1 Parts Stolen . | . . . . . . . . . . . . . . . . . . . Parts Stripped . | . . . . . . . . . . . . . . . . . . . Power Chain Reactions 6 | . . 1 . 1 2 . . . . . . . . . 1 . 1 . Missiles Intercepted . | . . . . . . . . . . . . . . . . . . . Alert | -11 -10 -10 -10 -9 -8 -7 -7 -7 -6 -6 -6 -6 -5 -5 -5 -5 -5 -5 ------- Run | Scr Mat Min Exi Min Mat Fac Was Fac Fac Low Low Zio Pro Fac Ext Cet Arc Hub Peak Influence 1233 | 5 199 120 . 155 364 293 80 196 63 . . . . 439 912 831 827 1233 Initial 332 | . 3 . . . 60 109 80 54 3 . . . . . 214 311 332 261 Average 244 | 2 68 68 . 83 191 144 77 72 15 . . . . 132 470 533 537 482 Maximum Alert Level 4 | . . . . . 1 1 . . . . . . . 2 3 3 3 4 Low Security (%) 53 | 100 100 100 . 100 46 78 100 100 100 . . . . 72 . . . . Level 1 24 | . . . . . 53 21 . . . . . . . 12 33 44 44 75 Level 2 16 | . . . . . . . . . . . . . . 14 58 38 30 1 Level 3 3 | . . . . . . . . . . . . . . . 7 16 25 12 Level 4 . | . . . . . . . . . . . . . . . . . . 10 Level 5 . | . . . . . . . . . . . . . . . . . . . High Security . | . . . . . . . . . . . . . . . . . . . Max Security . | . . . . . . . . . . . . . . . . . . . Squads Dispatched 25 | . 1 . . . 1 5 . 1 2 . . . . 2 6 . . 7 Investigation 5 | . 1 . . . . . . . . . . . . . 2 . . 2 Extermination 7 | . . . . . . 3 . 1 2 . . . . . . . . 1 Reinforcement 11 | . . . . . 1 2 . . . . . . . 2 4 . . 2 Assault 1 | . . . . . . . . . . . . . . . . . . 1 Garrison 1 | . . . . . . . . . . . . . . . . . . 1 Intercept . | . . . . . . . . . . . . . . . . . . . Construction Impeded 4 | . . . . . . . . . . . . . . . 3 . . 1 Haulers Reinforced 3 | . . . . . . 2 . . . . . . . 1 . . . . Stealth | -11 -10 -10 -10 -9 -8 -7 -7 -7 -6 -6 -6 -6 -5 -5 -5 -5 -5 -5 --------- Run | Scr Mat Min Exi Min Mat Fac Was Fac Fac Low Low Zio Pro Fac Ext Cet Arc Hub Distress Signals 8 | . . . . . . . . . 1 . . . . 2 3 1 . 1 Communications Jammed . | . . . . . . . . . . . . . . . . . . . Distress Signals . | . . . . . . . . . . . . . . . . . . . Times Spotted 217 | . 13 8 . 7 16 15 6 1 6 . 5 . 6 18 35 15 19 47 Peak Tracking Total 30 | . 4 3 . 3 4 5 3 1 6 . 4 . 5 5 4 4 14 30 Tactical Retreats 9 | . . 1 . 1 . . . . . . . . . . 1 . . 6 Traps | -11 -10 -10 -10 -9 -8 -7 -7 -7 -6 -6 -6 -6 -5 -5 -5 -5 -5 -5 ------- Run | Scr Mat Min Exi Min Mat Fac Was Fac Fac Low Low Zio Pro Fac Ext Cet Arc Hub Traps Triggered 5 | . 2 . . . . 2 . . . . . . . . 1 . . . Indirectly . | . . . . . . . . . . . . . . . . . . . Trap Hack Attempts . | . . . . . . . . . . . . . . . . . . . Triggered . | . . . . . . . . . . . . . . . . . . . Disarmed . | . . . . . . . . . . . . . . . . . . . Reprogrammed . | . . . . . . . . . . . . . . . . . . . Reused . | . . . . . . . . . . . . . . . . . . . Traps Extracted . | . . . . . . . . . . . . . . . . . . . Installed . | . . . . . . . . . . . . . . . . . . . Triggered . | . . . . . . . . . . . . . . . . . . . Machines | -11 -10 -10 -10 -9 -8 -7 -7 -7 -6 -6 -6 -6 -5 -5 -5 -5 -5 -5 ---------- Run | Scr Mat Min Exi Min Mat Fac Was Fac Fac Low Low Zio Pro Fac Ext Cet Arc Hub Machines Disabled 53 | . . . . 1 2 12 . 5 . . . . . 4 6 4 1 18 Max in Single Turn 11 | . . . . 1 1 4 . 5 . . . . . 3 1 . 1 11 Garrison Access 2 | . . . . . . 1 . . . . . . . . . . . 1 Network Hub 4 | . . . . . . . . . . . . . . . . . . 4 Machines Sabotaged 2 | . . . . . . . . . . . . . . . . . . 2 Garrisons Compromised . | . . . . . . . . . . . . . . . . . . . Overloaded Fab Kills . | . . . . . . . . . . . . . . . . . . . Fab Network Shutdowns . | . . . . . . . . . . . . . . . . . . . Hacking | -11 -10 -10 -10 -9 -8 -7 -7 -7 -6 -6 -6 -6 -5 -5 -5 -5 -5 -5 --------- Run | Scr Mat Min Exi Min Mat Fac Was Fac Fac Low Low Zio Pro Fac Ext Cet Arc Hub Machines Accessed 37 | . 5 . . . 3 2 . 3 2 1 1 . . 3 11 . 1 5 Terminals 29 | . 5 . . . 2 1 . 1 1 . . . . 3 11 . . 5 Fabricators . | . . . . . . . . . . . . . . . . . . . Repair Stations 1 | . . . . . . . . 1 . . . . . . . . . . Recycling Units 1 | . . . . . 1 . . . . . . . . . . . . . Scanalyzers . | . . . . . . . . . . . . . . . . . . . Garrison Access 3 | . . . . . . 1 . 1 1 . . . . . . . . . Total Hacks 112 | . 12 . . . 4 2 . 7 5 1 1 . . 11 34 . 25 10 Successful 66 | . 9 . . . 3 1 . 3 1 1 1 . . 4 11 . 25 7 Failed 46 | . 3 . . . 1 1 . 4 4 . . . . 7 23 . . 3 Catastrophic 9 | . 1 . . . . . . 2 1 . . . . 1 4 . . . Database Lockouts . | . . . . . . . . . . . . . . . . . . . Manual 39 | . 8 . . . 3 . . . . . . . . 10 12 1 . 5 Terminals 77 | . 12 . . . 3 1 . 4 2 . . . . 11 34 . . 10 Fabricators . | . . . . . . . . . . . . . . . . . . . Repair Stations 1 | . . . . . . . . 1 . . . . . . . . . . Recycling Units 1 | . . . . . 1 . . . . . . . . . . . . . Scanalyzers . | . . . . . . . . . . . . . . . . . . . Garrison Access 6 | . . . . . . 1 . 2 3 . . . . . . . . . Terminal Hacks 53 | . 4 . . . 1 . . 3 1 1 1 . . 3 10 . 25 4 Record 26 | . . . . . . . . . . . . . . . . . 25 1 Robot Analysis 2 | . . . . . . . . . . . . . . 2 . . . . Prototype ID Bank 3 | . 1 . . . . . . 1 . . . . . . . . . 1 Open Door 6 | . . . . . . . . . . 1 1 . . . 4 . . . Branch Access Points 4 | . . . . . 1 . . 1 1 . . . . 1 . . . . Emergency Access Points 1 | . . . . . . . . 1 . . . . . . . . . . Alert Level 1 | . . . . . . . . . . . . . . . 1 . . . Unreport Threat 2 | . . . . . . . . . . . . . . . 2 . . . Locate Traps 1 | . . . . . . . . . . . . . . . 1 . . . Patrol Status 1 | . . . . . . . . . . . . . . . 1 . . . Hauler Manifests 3 | . 1 . . . . . . . . . . . . . 1 . . 1 Zone Layout 3 | . 2 . . . . . . . . . . . . . . . . 1 Fabricator Hacks . | . . . . . . . . . . . . . . . . . . . Repair Station Hacks . | . . . . . . . . . . . . . . . . . . . Recycling Unit Hacks . | . . . . . . . . . . . . . . . . . . . Scanalyzer . | . . . . . . . . . . . . . . . . . . . Garrison Access Hacks 1 | . . . . . . 1 . . . . . . . . . . . . Seal Access 1 | . . . . . . 1 . . . . . . . . . . . . Unauthorized Hacks 12 | . 5 . . . 2 . . . . . . . . 1 1 . . 3 Terminals 11 | . 5 . . . 1 . . . . . . . . 1 1 . . 3 Track 6 | . 4 . . . 1 . . . . . . . . . . . . 1 Botnet 1 | . . . . . . . . . . . . . . . 1 . . . Operators 2 | . 1 . . . . . . . . . . . . 1 . . . . Sabotage 2 | . . . . . . . . . . . . . . . . . . 2 Fabricators . | . . . . . . . . . . . . . . . . . . . Repair Stations . | . . . . . . . . . . . . . . . . . . . Recycling Units 1 | . . . . . 1 . . . . . . . . . . . . . Mask 1 | . . . . . 1 . . . . . . . . . . . . . Scanalyzers . | . . . . . . . . . . . . . . . . . . . Garrison Access . | . . . . . . . . . . . . . . . . . . . Data Cores Recovered 2 | . . . . . . . . . . . . . . . 2 . . . Used 1 | . . . . . . . . . . . . . . . 1 . . . Hacking Detections 27 | . 4 . . . 2 1 . 3 2 . . . . 3 10 . . 2 Full Trace Events 2 | . . . . . . . . . . . . . . . 2 . . . Feedback Events . | . . . . . . . . . . . . . . . . . . . Feedback Blocked . | . . . . . . . . . . . . . . . . . . . Robot Schematics Acquired . | . . . . . . . . . . . . . . . . . . . Robots Built . | . . . . . . . . . . . . . . . . . . . Matter . | . . . . . . . . . . . . . . . . . . . Time . | . . . . . . . . . . . . . . . . . . . Total Robot Build Rating . | . . . . . . . . . . . . . . . . . . . Part Schematics Acquired . | . . . . . . . . . . . . . . . . . . . Parts Built . | . . . . . . . . . . . . . . . . . . . Matter . | . . . . . . . . . . . . . . . . . . . Time . | . . . . . . . . . . . . . . . . . . . Total Part Build Rating . | . . . . . . . . . . . . . . . . . . . Parts Repaired . | . . . . . . . . . . . . . . . . . . . Time . | . . . . . . . . . . . . . . . . . . . Parts Recycled . | . . . . . . . . . . . . . . . . . . . Recycled Matter . | . . . . . . . . . . . . . . . . . . . Retrieved Matter . | . . . . . . . . . . . . . . . . . . . Retrieved Components . | . . . . . . . . . . . . . . . . . . . Parts Scanalyzed . | . . . . . . . . . . . . . . . . . . . Part Schematics Acquired . | . . . . . . . . . . . . . . . . . . . Parts Damaged . | . . . . . . . . . . . . . . . . . . . Bothacking | -11 -10 -10 -10 -9 -8 -7 -7 -7 -6 -6 -6 -6 -5 -5 -5 -5 -5 -5 ------------ Run | Scr Mat Min Exi Min Mat Fac Was Fac Fac Low Low Zio Pro Fac Ext Cet Arc Hub Used RIF Installer . | . . . . . . . . . . . . . . . . . . . Robots Hacked . | . . . . . . . . . . . . . . . . . . . Non-combat . | . . . . . . . . . . . . . . . . . . . Combat . | . . . . . . . . . . . . . . . . . . . Robot Hacks Applied . | . . . . . . . . . . . . . . . . . . . Relay Couplers Released . | . . . . . . . . . . . . . . . . . . . Robots Rewired 11 | . . . . . . . . . . . . . . . 11 . . . Allies Hacked . | . . . . . . . . . . . . . . . . . . . Hacks Repelled . | . . . . . . . . . . . . . . . . . . . Allies | -11 -10 -10 -10 -9 -8 -7 -7 -7 -6 -6 -6 -6 -5 -5 -5 -5 -5 -5 -------- Run | Scr Mat Min Exi Min Mat Fac Was Fac Fac Low Low Zio Pro Fac Ext Cet Arc Hub Total Allies 22 | . . . . . . . . . . . . . . . 18 4 . . Largest Group 8 | . . . . . . . . . . . . . . . 8 6 4 . Highest-Rated Group 563 | . . . . . . . . . . . . . . . 261 563 374 . Highest-Rated Ally 156 | . . . . . . . . . . . . . . . 156 156 156 . Total Orders 5 | . . . . . . . . . . . . 1 . . 3 . 1 . STAY 3 | . . . . . . . . . . . . . . . 2 . 1 . FOLLOW 1 | . . . . . . . . . . . . . . . 1 . . . EXPLORE 1 | . . . . . . . . . . . . 1 . . . . . . Ally Attacks 251 | . . . . . . . . . . . . . . . 129 89 33 . Total Damage 5639 | . . . . . . . . . . . . . . . 2325 2247 1067 . Kills 48 | . . . . . . . . . . . . . . . 25 15 8 . Allies Corrupted . | . . . . . . . . . . . . . . . . . . . Allies Melted . | . . . . . . . . . . . . . . . . . . . Intel | -11 -10 -10 -10 -9 -8 -7 -7 -7 -6 -6 -6 -6 -5 -5 -5 -5 -5 -5 ------- Run | Scr Mat Min Exi Min Mat Fac Was Fac Fac Low Low Zio Pro Fac Ext Cet Arc Hub Robot Analysis Total 2 | . . . . . . . . . . . . . . 2 . . . . Derelict Logs Recovered 6 | . . . . 1 . . . . . 2 . 2 1 . . . . . Drone Launches 2 | . . . . . . . . . . . . 2 . . . . . . Drone Recoveries . | . . . . . . . . . . . . . . . . . . . Exploration | -11 -10 -10 -10 -9 -8 -7 -7 -7 -6 -6 -6 -6 -5 -5 -5 -5 -5 -5 ------------- Run | Scr Mat Min Exi Min Mat Fac Was Fac Fac Low Low Zio Pro Fac Ext Cet Arc Hub Turns Passed 14330 | 89 894 583 282 202 709 1544 277 530 815 799 702 2003 430 688 2227 583 95 878 Spaces Moved 7212 | 49 485 332 176 91 325 756 102 303 439 413 210 1084 216 306 1021 260 46 598 Core 130 | 2 . . . . . . . . . . . . . . . . . 128 Treads 6922 | 47 485 332 176 91 325 756 102 303 439 413 210 1084 216 306 1021 260 46 310 Legs . | . . . . . . . . . . . . . . . . . . . Wheels . | . . . . . . . . . . . . . . . . . . . Hover . | . . . . . . . . . . . . . . . . . . . Flight 160 | . . . . . . . . . . . . . . . . . . 160 Fastest Speed 40 | 50 160 160 160 160 160 180 160 160 160 160 160 160 160 160 160 160 160 40 Average Speed 160 | 155 160 160 160 160 179 180 178 160 160 160 160 160 160 160 167 160 160 109 Slowest Speed 200 | 160 160 160 160 160 200 180 180 160 160 160 160 160 160 200 180 160 180 180 Overloaded Moves . | . . . . . . . . . . . . . . . . . . . Propulsion Burnouts . | . . . . . . . . . . . . . . . . . . . Robots Hopped 7 | . . . . . . . . . . . . . . . . . . 7 Cave-ins Triggered . | . . . . . . . . . . . . . . . . . . . Exploration Rate (%) 46 | 4 85 53 55 25 33 25 86 7 17 61 27 86 43 8 73 65 76 52 Regions Visited 18 Branch Regions 11 Pre-discovered Areas 2 | . . . . 1 . . . . . . . 1 . . . . . . Known Exits Taken 9 | . . . . . . . . . 1 1 1 1 1 1 1 1 1 . Unknown Exits Taken 7 | 1 1 1 1 1 1 . . 1 . . . . . . . . . . Scrap Searched 12 | . . . . 2 . . . . . 6 3 1 . . . . . . Spaces Dug 19 | . . . . . . 1 . 1 7 3 . . . 1 . . . 6 Terrain Destroyed 708 | . 11 14 . 2 14 57 24 40 7 3 29 . 18 52 69 9 8 351 Melee 18 | . . . . . . 1 . 1 7 3 . . . 1 . . . 5 Projectile 81 | . . . . . . . . . . . 1 . . 5 38 9 3 25 AOE 609 | . 11 14 . 2 14 56 24 39 . . 28 . 18 46 31 . 5 321 Terrain Rammed . | . . . . . . . . . . . . . . . . . . . Walls Destroyed . | . . . . . . . . . . . . . . . . . . . Machines Disabled . | . . . . . . . . . . . . . . . . . . . Actions | -11 -10 -10 -10 -9 -8 -7 -7 -7 -6 -6 -6 -6 -5 -5 -5 -5 -5 -5 --------- Run | Scr Mat Min Exi Min Mat Fac Was Fac Fac Low Low Zio Pro Fac Ext Cet Arc Hub Total 9310 | 57 556 360 177 120 419 873 141 337 513 546 561 1352 278 447 1380 396 55 742 Wait 1187 | . 15 13 . 14 36 34 . 5 29 103 333 259 45 78 82 64 . 77 Move 7181 | 48 484 331 175 90 324 756 101 302 438 412 209 1083 215 305 1020 259 45 584 Hop 7 | . . . . . . . . . . . . . . . . . . 7 Pick Up 105 | 2 8 2 . 1 19 15 2 6 7 4 2 . 1 6 14 10 . 6 Fast Attach 63 | 6 5 . . . 3 4 3 1 2 7 . 4 1 7 4 9 . 7 Attach 28 | . . . . 1 5 3 2 2 2 . . . 1 2 3 . 1 6 Detach 11 | . 1 . . . . . 2 1 1 1 . . . 1 1 . . 3 Swap 138 | . 8 2 1 . 4 14 5 8 11 1 9 2 4 12 30 12 1 14 Drop 143 | . 7 . 1 . 13 20 4 7 4 11 2 4 2 12 22 28 . 6 Fire 287 | 1 27 12 . 14 15 26 22 4 7 . 6 . 9 23 75 14 8 24 Melee 30 | . . . . . . 1 . 1 12 7 . . . 1 2 . . 6 Ram . | . . . . . . . . . . . . . . . . . . . Kick . | . . . . . . . . . . . . . . . . . . . Crush 4 | . 1 . . . . . . . . . . . . . 1 . . 2 Escape Stasis . | . . . . . . . . . . . . . . . . . . . Rewire 126 | . . . . . . . . . . . . . . . 126 . . . Trap . | . . . . . . . . . . . . . . . . . . . Miscellaneous . | . . . . . . . . . . . . . . . . . . . Route ------- -11/Scrapyard -10/Materials (discovered 4 exits: [*Mat x2] / [*Min x2]) -10/Mines (discovered 2 exits: [*Mat] / [*Exi]) -10/Exiles -9/Mines -8/Materials -7/Factory (discovered 2 exits: *Fac x2) -7/Waste -7/Factory (discovered 3 exits: *Fac / Low x2) -6/Factory (discovered 2 exits: *Low x2) -6/Lower Caves -6/Lower Caves -6/Zion (discovered 2 exits: [Dee] / *Pro) -5/Proximity Caves -5/Factory (discovered 4 exits: Upp x2 / *Ext x2) -5/Extension (discovered 2 exits: *Fac / *Cet) -5/Cetus (discovered 2 exits: *Fac / *Arc) -5/Archives -5/Hub_04(d) (discovered 2 exits: *Fac x2) History --------- Turn | Location | Event 12 | -11/Scrapyard | Discovered new exit (range 16) 90 | -11/Scrapyard | Entered Materials 317 | -10/Materials | Build established: Mutant 342 | -10/Materials | Discovered new exit (range 16) 543 | -10/Materials | Discovered new exit (range 15) 775 | -10/Materials | Discovered new exit (range 14) 877 | -10/Materials | Discovered new exit (range 16) 984 | -10/Materials | Entered Mines 1203 | -10/Mines | YI-UF0 nonchalantly dropped a Grenade Launcher on the ground 1233 | -10/Mines | Destroyed YI-UF0 1253 | -10/Mines | Discovered new exit (range 10) 1431 | -10/Mines | Assembled infested the area 1561 | -10/Mines | Deemed a non-threat by the Exiles lab entrance 1561 | -10/Mines | Discovered new exit (range 5) 1567 | -10/Mines | Entered Exiles 1607 | -10/Exiles | Met 8R-AWN 1635 | -10/Exiles | Met EX-HEX 1711 | -10/Exiles | Met EX-DEC 1836 | -10/Exiles | Discovered new exit (range 10) 1849 | -10/Exiles | Entered Mines 1996 | -9/Mines | Discovered new exit (range 10) 2024 | -9/Mines | Learned location of Zion (-6) 2051 | -9/Mines | Entered Materials 2051 | -8/Materials | Evolved 4 slots: Utility x2, Weapon x2 2351 | -8/Materials | Build established: Tank 2441 | -8/Materials | Lost 3 parts (1n2w) 2703 | -8/Materials | Discovered new exit (range 9) 2760 | -8/Materials | Entered Factory 2760 | -7/Factory | Evolved 2 slots: Utility x1, Weapon x1 3633 | -7/Factory | Discovered new exit (range 24) 3870 | -7/Factory | Discovered new exit (range 15) 4246 | -7/Factory | Build established: Skirmisher 4304 | -7/Factory | Sucked down chute 4304 | -7/Factory | Entered Waste 4319 | -7/Waste | EMP discharged 4319 | -7/Waste | System corruption reached 10% 4357 | -7/Waste | Spotted C-40 Crusher 4363 | -7/Waste | Destroyed C-40 Crusher 4368 | -7/Waste | Spotted C-40 Crusher 4390 | -7/Waste | Destroyed C-40 Crusher 4399 | -7/Waste | Crushed by Compactor (1 part destroyed, 2 dropped) 4401 | -7/Waste | Destroyed C-40 Crusher 4406 | -7/Waste | Spotted C-40 Crusher 4414 | -7/Waste | Spotted C-40 Crusher 4419 | -7/Waste | EMP discharged 4426 | -7/Waste | Destroyed C-40 Crusher 4430 | -7/Waste | Spotted C-40 Crusher 4437 | -7/Waste | Destroyed C-40 Crusher 4453 | -7/Waste | Destroyed C-40 Crusher 4466 | -7/Waste | Found Damper Plating 4519 | -7/Waste | EMP discharged 4560 | -7/Waste | Discovered new exit (range 13) 4581 | -7/Waste | Entered Factory 4973 | -7/Factory | Discovered new exit (range 15) 5045 | -7/Factory | Identified exit to Lower Caves 5111 | -7/Factory | Entered another Factory area 5111 | -6/Factory | Evolved 2 slots: Propulsion x1, Utility x1 5638 | -6/Factory | Identified exit to Lower Caves 5926 | -6/Factory | Entered Lower Caves 5941 | -6/Lower Caves | Learned 4 Factory zone layouts 6047 | -6/Lower Caves | Build established: Assassin 6244 | -6/Lower Caves | Encountered a Warlord checkpoint 6284 | -6/Lower Caves | Learned 4 Factory zone layouts 6532 | -6/Lower Caves | Discovered new exit (range 19) 6668 | -6/Lower Caves | Identified exit to Lower Caves 6725 | -6/Lower Caves | Entered another Lower Caves area 6739 | -6/Lower Caves | Encountered a Warlord checkpoint 6923 | -6/Lower Caves | Discovered new exit (range 17) 7372 | -6/Lower Caves | Identified exit to Zion 7427 | -6/Lower Caves | Entered Zion 7603 | -6/Zion | System corruption cleaned by Quarantine Array 7610 | -6/Zion | Build established: Skirmisher 7735 | -6/Zion | Learned Factory scanalyzer intel 7847 | -6/Zion | Learned location of Warlord (-4) 8145 | -6/Zion | Learned Factory stockpile data 8155 | -6/Zion | Learned Factory non-interactive machine intel 8245 | -6/Zion | Found Prototype Device 8245 | -6/Zion | Identified Mobile Refinery Mk. CCLXVII 9050 | -6/Zion | Discovered new exit (range 19) 9290 | -6/Zion | Discovered new exit (range 9) 9301 | -6/Zion | Identified exit to Proximity Caves 9430 | -6/Zion | Entered Proximity Caves 9430 | -5/Proximity Caves | Learned Factory terminal intel 9735 | -5/Proximity Caves | Discovered new exit (range 10) 9858 | -5/Proximity Caves | Identified exit to Factory 9860 | -5/Proximity Caves | Entered Factory 9860 | -5/Factory | Evolved 2 slots: Utility x2 9863 | -5/Factory | Loaded intel: 235 non-interactive machine locations 9864 | -5/Factory | Loaded intel: 21 terminal locations 9865 | -5/Factory | Loaded intel: 4 scanalyzer locations 10358 | -5/Factory | Discovered new exit (range 20) 10371 | -5/Factory | Identified exit to Upper Caves 10371 | -5/Factory | Identified exit to Extension 10548 | -5/Factory | Entered Extension 11028 | -5/Extension | Build established: Scavenger-Gunner 11752 | -5/Extension | Spotted B-75 Beast 11759 | -5/Extension | Spotted B-75 Beast 11775 | -5/Extension | Destroyed B-75 Beast 11777 | -5/Extension | Allies destroyed B-75 Beast 11798 | -5/Extension | Disrupted transfer network 11859 | -5/Extension | Rescued a captive Derelict 11860 | -5/Extension | Rescued a captive Derelict 12004 | -5/Extension | Rescued a captive Derelict 12345 | -5/Extension | Rescued A7 12582 | -5/Extension | Rescued a captive Derelict 12648 | -5/Extension | Rescued a captive Derelict 12648 | -5/Extension | Rescued a captive Derelict 12746 | -5/Extension | Discovered new exit (range 10) 12747 | -5/Extension | Discovered new exit (range 6) 12771 | -5/Extension | Identified exit to Cetus 12775 | -5/Extension | Entered Cetus 12775 | -5/Cetus | Accompanied by 4 allies (A7) 12780 | -5/Cetus | Acquired a Cetus Manufacturing Module code from A7 12811 | -5/Cetus | Spotted Cetus Guard 12812 | -5/Cetus | Spotted Cetus Guard 12812 | -5/Cetus | Spotted Cetus Guard 12812 | -5/Cetus | Allies destroyed Cetus Guard 12819 | -5/Cetus | Spotted Cetus Guard 12820 | -5/Cetus | Destroyed Cetus Guard 12825 | -5/Cetus | Allies destroyed Cetus Guard 12827 | -5/Cetus | Allies destroyed Cetus Guard 12956 | -5/Cetus | Started Cetus Manufacturing Module 12981 | -5/Cetus | Manufactured an Enhanced Grunt 13006 | -5/Cetus | Manufactured an Enhanced Grunt 13031 | -5/Cetus | Manufactured an Enhanced Grunt 13056 | -5/Cetus | Manufactured an Enhanced Grunt 13056 | -5/Cetus | Cetus Manufacturing Module disabled 13105 | -5/Cetus | Discovered new exit (range 16) 13118 | -5/Cetus | Destroyed Cetus Guard 13122 | -5/Cetus | Destroyed Cetus Guard 13135 | -5/Cetus | Spotted Cetus Guard 13138 | -5/Cetus | Spotted Cetus Guard 13139 | -5/Cetus | Allies destroyed Cetus Guard 13139 | -5/Cetus | Destroyed Cetus Guard 13164 | -5/Cetus | Discovered new exit (range 15) 13204 | -5/Cetus | Met Revision 17 13204 | -5/Cetus | Destroyed Revision 17 13222 | -5/Cetus | Identified exit to Factory 13333 | -5/Cetus | Found Prototype Device 13333 | -5/Cetus | Identified Exp. Thermal Shield 13353 | -5/Cetus | Identified exit to Archives 13358 | -5/Cetus | Entered Archives 13358 | -5/Archives | Accompanied by 4 allies (A7) 13376 | -5/Archives | Met Zhirov 13382 | -5/Archives | Reinforcements dispatched to Archives 13424 | -5/Archives | Read partially decrypted archive contents 13427 | -5/Archives | Reinforcements dispatched to Archives 13428 | -5/Archives | Discovered new exit (range 15) 13429 | -5/Archives | Zhirov warped through subspace 13447 | -5/Archives | Zhirov detonated Archives 13451 | -5/Archives | Identified exit to Hub_04(d) 13453 | -5/Archives | Entered Hub_04(d) 13497 | -5/Hub_04(d) | Discovered exit to Factory (range 16) 13598 | -5/Hub_04(d) | Discovered exit to Factory (range 21) 13982 | -5/Hub_04(d) | Garrison activated, responded to threat 14132 | -5/Hub_04(d) | Network Hub disabled 14132 | -5/Hub_04(d) | Garrison activated, responded to threat 14136 | -5/Hub_04(d) | Spotted Lightning 14138 | -5/Hub_04(d) | Spotted Lightning 14138 | -5/Hub_04(d) | Spotted Lightning 14138 | -5/Hub_04(d) | Spotted Lightning 14143 | -5/Hub_04(d) | Spotted Lightning 14150 | -5/Hub_04(d) | Spotted Lightning 14152 | -5/Hub_04(d) | Spotted Lightning 14154 | -5/Hub_04(d) | Spotted Lightning 14157 | -5/Hub_04(d) | Spotted Lightning 14161 | -5/Hub_04(d) | Spotted Lightning 14163 | -5/Hub_04(d) | Spotted Lightning 14167 | -5/Hub_04(d) | Spotted Lightning 14174 | -5/Hub_04(d) | System corruption reached 10% 14175 | -5/Hub_04(d) | Released all parts (4) 14178 | -5/Hub_04(d) | Core integrity fell below 50% 14190 | -5/Hub_04(d) | Destroyed 8 combat bots 14206 | -5/Hub_04(d) | Lost 12 parts (1p1n3u7w) 14223 | -5/Hub_04(d) | Network Hub disabled 14272 | -5/Hub_04(d) | Network Hub disabled 14274 | -5/Hub_04(d) | Network Hub disabled 14322 | -5/Hub_04(d) | Core integrity fell below 20% 14331 | -5/Hub_04(d) | Core destroyed Last Messages --------------- 14274_ Terminal disabled. 14274_ Door malfunctions. 14274_ K-01 Serf destroyed. 14274_ K-01 Serf collects debris. 14284_ Extracted 8 matter. 14313_ YNL7IKNHNXJB=X E:G=UTHZ2XCSMS<8 14317_ EMDS Slug penetrates Wall. 14319_ Penetrated by EMDS Slug. 14320_ System corrupted: Slammed into wall. 14320_ Lgt. Angular Momentum Engine destroyed. 14321_ Penetrated by EMDS Slug. 14321_ EMDS Slug penetrates Lightning. 14323_ EMDS Slug penetrates Wall. 14328_ Penetrated by EMDS Slug. 14328_ KE Penetrator destroyed. 14330_ Penetrated by EMDS Slug. 14330_ Field Propulsion Drive destroyed. 14330_ Adv. Melee Analysis Suite destroyed. 14331_ 1NMA4WRIB9GZY=LXE19P NNFHGA 14331_ Slammed into Lightning. Map ----- +----------------------------------------------------+ | ???? ??? #########?### """ # # " # ? ? | | ?????????#???##??######?#?######## # " # ?? | | ??????????#??#?##?##?##?#?#?###### # #? | | ????????? ??##??###?###?########## ###### ? | | ????????????#?#?################## ############/ | | ?????????????#####?#######?#?##### | | ?????????????#?##??#?####??#####?# | | ????????? ?#??#???#####?#?###?####^ | | ????????????#??##?############?### T ######+ | | ???????????????????#######?###???# " [ ##?? | | ????????????????????######?###???# [ ##????" | | ?????????????????????##??#?#?????# [ ##??" ? | | ????????????????????##?#???#????##!! ##??" ? | | ??????????????????????#??###?#?###!! ## ?? | | ???????????????????????????##?#### #? ??" | | ????##########????##???#?#?##?##?# ##? ? ? | | ????# #??????#????#???????# """ |#?????" | | ????# " #?????#??#??#?#???### #? ??? | | ????# " #??????????########## ## ?? | | ????# " #??????????# # #### ## ?? | | ????# #??????????# # #??# ## ?? | | ????# #??????????# # #??# #####?? | | ????# """" #??????????# # #??# #??# ?? | | ????# """" #??????????# """" # #??# # ?# ?? | | ????# """" #??????????# """" # i #??# # " ?? | | ????# """" #??????????#@""""h # #### # " | | ????# #??????????#h"""" # # " """" | | ????# """" #??????????# h !# # " " | | ????# """" ############+##/##### # " " | | ????+ """" # ##"""""""" | | ????# """" # ## "" | | ????# + g ## "" | | ????###########+############+#######g##/ "" | | ??????????#! ]#?# T ## ## """"? | | ??????????# #?# ##g## " ??? | | ??????????# ! #?# """" " # # #???? | | ??????????# """" ### """" " k! #g "#???? | | ??????????# """" + + """" " #%* # ""#???? | | ??????????# """" ### """" ## ## g ""#???? | | ??????????# """" ! #?# ## ##g " ""#???? | | ??????????# #?############## g " ""#???? | | ???????????##########???# ## ## " "#???? | | ????????????????????????# ## ## #???? | | ????????????????????????# / #########???? | | ????????????????????????# """" ## #???????????? | | ????????????????????????# """" ## #???????????? | | ????????????????????????# """" ## #???????????? | | ????????????????????????# """" ## #???????????? | | ????????????????????????# ## #???????????? | | ?????????????????????????????+##???# #???????????? | +----------------------------------------------------+ Best States ------------- Heat Dissipation 67 Energy Generation 25 Energy Capacity 350 Matter Stores 550 Matter Capacity 550 Sight Range 16 Robot Scan Range 20 Terrain Scan Range 24 Terrain Scan Density 210 Armor Coverage 1200 Resistance: TH 10 Resistance: EM 90 Weapon Shielding 66 Weapon Cycling 15 Evasion (%) 62 Targeting Accuracy 13 Melee Accuracy 16 Target Analysis 5 Armor Integrity Analysis 50 Recoil Reduction 3 Offensive Hacking 10 Defensive Hacking 28 Item Schematics ----------------- None Robot Schematics ------------------ None Fabricated ------------ Nothing Alien Tech Used ----------------- None Achievements -------------- None Challenges ------------ None Game ------ Seed BlastDisruptorLoader Manual? 0 Play Time 02:15:16 Cumulative 227.6 hours Start 2020.09.22 @ 15:55:05 End 2020.09.23 @ 20:28:06 Sessions 9 Manual Loads 0 Difficulty Rogue Special Mode None Game No. 174 Rogue 174 Adventurer 0 Explorer 0 Win Type - Total 10 Types 5/0/1/1/0/2/1/0/0 Lore% 74 Gallery% 80 Achievement% 73 Wizard Run 0 Options --------- ASCII 0 Keyboard 1 Movement Numpad Keybinds 0 Fullscreen 0 Font 12/Smallcaps Map View 83x54 Tactical HUD 1 Map Filters NONE Filters LOW_CONTRAST(13,24,33) Steam 1 RUN: 90b40642-6d2b-462b-b6ee-e84466929713